fUSD/lending_fUSD_20240531
["ID","MTS","AMOUNT","RATE_DAILY","PERIOD"]
[328312045,1717144251235,-500.0,0.00032876,11]
[328312046,1717144251244,-500.0,0.00032876,11]
[328312047,1717144251253,-500.0,0.00032876,11]
[328312048,1717144251263,-461.71030298,0.00032876,11]
[328312049,1717144251272,-500.0,0.00032876,11]
[328312050,1717144251281,-631.08461231,0.00032876,11]
[328312051,1717144251290,-500.0,0.00032876,11]
[328312052,1717144251299,-500.0,0.00032876,11]
[328312053,1717144251309,-500.0,0.00032876,11]
[328312054,1717144251318,-500.0,0.00032876,11]
[328312055,1717144251327,-500.0,0.00032876,11]
[328312056,1717144251336,-500.0,0.00032876,11]
[328312057,1717144251346,-500.0,0.00032876,11]
[328312058,1717144251355,-500.0,0.00032876,11]
[328312059,1717144251366,-500.0,0.00032876,11]
[328312060,1717144251375,-500.0,0.00032876,11]
[328312061,1717144251384,-500.0,0.00032876,11]
[328312062,1717144251394,-500.0,0.00032876,11]
[328312063,1717144251403,-500.0,0.00032876,11]
[328312064,1717144251411,-500.0,0.00032876,11]
[328312065,1717144251420,-500.0,0.00032876,11]
[328312066,1717144251429,-500.0,0.00032876,11]
[328312067,1717144251440,-324.38589834,0.00032876,11]
[328312068,1717144251449,-500.0,0.00032876,11]
[328312069,1717144251458,-500.0,0.00032876,11]
[328312070,1717144251470,-500.0,0.00032876,11]
[328312071,1717144251478,-500.0,0.00032876,11]
[328312072,1717144251488,-500.0,0.00032876,11]
[328312073,1717144251497,-511.78517686,0.00032876,11]
[328312074,1717144251506,-517.09265819,0.00032876,11]
[328312075,1717144251515,-500.0,0.00032876,11]
[328312076,1717144251524,-500.0,0.00032876,11]
[328312077,1717144251533,-500.0,0.00032876,11]
[328312078,1717144251542,-500.0,0.00032876,11]
[328312079,1717144251551,-500.0,0.00032876,11]
[328312080,1717144251561,-500.0,0.00032876,11]
[328312081,1717144251570,-500.0,0.00032876,11]
[328312082,1717144251580,-500.0,0.00032876,11]
[328312083,1717144251589,-500.0,0.00032876,11]
[328312084,1717144251598,-500.0,0.00032876,11]
[328312085,1717144251607,-500.0,0.00032876,11]
[328312086,1717144251616,-500.0,0.00032876,11]
[328312087,1717144251626,-500.0,0.00032876,11]
[328312088,1717144251635,-500.0,0.00032876,11]
[328312089,1717144251644,-500.0,0.00032876,11]
[328312090,1717144251653,-500.0,0.00032876,11]
[328312091,1717144251662,-500.0,0.00032876,11]
[328312092,1717144251671,-500.0,0.00032876,11]
[328312093,1717144251680,-500.0,0.00032876,11]
[328312094,1717144251691,-500.0,0.00032876,11]
[328312095,1717144251700,-500.0,0.00032876,11]
[328312096,1717144251709,-516.84062398,0.00032876,11]
[328312097,1717144251719,-500.0,0.00032876,11]
[328312098,1717144251728,-500.0,0.00032876,11]
[328312099,1717144251738,-500.0,0.00032876,11]
[328312100,1717144251747,-500.0,0.00032876,11]
[328312101,1717144251756,-500.0,0.00032876,11]
[328312102,1717144251765,-500.0,0.00032876,11]
[328312103,1717144251775,-499.1988,0.00032876,11]
[328312104,1717144251784,-500.0,0.00032876,11]
[328312105,1717144251793,-500.0,0.00032876,11]
[328312106,1717144251802,-500.0,0.00032876,11]
[328312107,1717144251811,-500.0,0.00032876,11]
[328312108,1717144251821,-500.0,0.00032876,11]
[328312109,1717144251830,-500.0,0.00032876,11]
[328312110,1717144251839,-500.0,0.00032876,11]
[328312111,1717144251848,-500.0,0.00032876,11]
[328312112,1717144251858,-500.0,0.00032876,11]
[328312113,1717144251867,-500.0,0.00032876,11]
[328312114,1717144251876,-500.0,0.00032876,11]
[328312115,1717144251885,-500.0,0.00032876,11]
[328312116,1717144251893,-500.0,0.00032876,11]
[328312117,1717144251903,-478.94989749,0.00032876,11]
[328312118,1717144251935,-1301.75230027,0.00032027,60]
[328312119,1717144251953,-95.53548841,0.00032027,60]
[328312120,1717144251962,-21.05010251,0.00032876,11]
[328312121,1717144251972,-440.67655925,0.00032876,11]
[328312122,1717144252216,-59.32344075,0.00032876,11]
[328312123,1717144252226,-500.0,0.00032876,11]
[328312124,1717144252235,-500.0,0.00032876,11]
[328312125,1717144252243,-500.0,0.00032876,11]
[328312126,1717144252253,-141.82655925,0.00032876,11]
[328312127,1717144252264,-358.17344075,0.00032876,11]
[328312128,1717144252273,-500.0,0.00032876,11]
[328312129,1717144252282,-500.0,0.00032876,11]
[328312130,1717144252291,-500.0,0.00032876,11]
[328312131,1717144252300,-500.0,0.00032876,11]
[328312132,1717144252310,-500.0,0.00032876,11]
[328312133,1717144252319,-169.1867004,0.00032876,11]
[328312134,1717144252331,-330.8132996,0.00032876,11]
[328312135,1717144252340,-500.0,0.00032876,11]
[328312136,1717144252349,-500.0,0.00032876,11]
[328312137,1717144252358,-500.0,0.00032876,11]
[328312138,1717144252367,-500.0,0.00032876,11]
[328312139,1717144252377,-500.0,0.00032876,11]
[328312140,1717144252386,-500.0,0.00032876,11]
[328312141,1717144252396,-500.0,0.00032876,11]
[328312142,1717144252406,-500.0,0.00032876,11]
[328312143,1717144252415,-500.0,0.00032876,11]
[328312144,1717144252425,-500.0,0.00032876,11]
[328312145,1717144252435,-500.0,0.00032876,11]
[328312146,1717144252445,-500.0,0.00032876,11]
[328312147,1717144252454,-500.0,0.00032876,11]
[328312148,1717144252463,-500.0,0.00032876,11]
[328312149,1717144252472,-500.0,0.00032876,11]
[328312150,1717144252481,-500.0,0.00032876,11]
[328312151,1717144252491,-500.0,0.00032876,11]
[328312152,1717144252501,-500.0,0.00032876,11]
[328312153,1717144252511,-500.0,0.00032876,11]
[328312154,1717144252520,-500.0,0.00032876,11]
[328312155,1717144252529,-500.0,0.00032876,11]
[328312156,1717144252538,-500.0,0.00032876,11]
[328312157,1717144252548,-500.0,0.00032876,11]
[328312158,1717144252557,-500.0,0.00032876,11]
[328312159,1717144252566,-423.14,0.00032876,11]
[328312160,1717144252575,-500.0,0.00032876,11]
[328312161,1717144252585,-500.0,0.00032876,11]
[328312162,1717144252594,-500.0,0.00032876,11]
[328312163,1717144252604,-500.0,0.00032876,11]
[328312164,1717144252614,-224.0,0.00032876,11]
[328312165,1717144252623,-500.0,0.00032876,11]
[328312166,1717144252632,-500.0,0.00032876,11]
[328312167,1717144252749,-500.0,0.00032876,11]
[328312168,1717144252759,-387.37904172,0.00032876,11]
[328312169,1717144252768,-500.0,0.00032876,11]
[328312170,1717144252778,-484.21438104,0.00032876,11]
[328312171,1717144252787,-500.0,0.00032876,11]
[328312172,1717144252796,-500.0,0.00032876,11]
[328312173,1717144252805,-303.41005658,0.00032876,11]
[328312174,1717144252815,-500.0,0.00032876,11]
[328312175,1717144252824,-500.0,0.00032876,11]
[328312176,1717144252833,-500.0,0.00032876,11]
[328312177,1717144252843,-500.0,0.00032876,11]
[328312178,1717144252852,-500.0,0.00032876,11]
[328312179,1717144252861,-500.0,0.00032876,11]
[328312180,1717144252870,-500.0,0.00032876,11]
[328312181,1717144252879,-500.0,0.00032876,11]
[328312182,1717144252888,-500.0,0.00032876,11]
[328312183,1717144252898,-500.0,0.00032876,11]
[328312184,1717144252907,-500.0,0.00032876,11]
[328312185,1717144252916,-500.0,0.00032876,11]
[328312186,1717144252925,-500.0,0.00032876,11]
[328312187,1717144252936,-500.0,0.00032876,11]
[328312188,1717144252945,-310.40605034,0.00032876,11]
[328312189,1717144252954,-500.0,0.00032876,11]
[328312190,1717144252963,-500.0,0.00032876,11]
[328312191,1717144252972,-500.0,0.00032876,11]
[328312192,1717144252981,-500.0,0.00032876,11]
[328312193,1717144252990,-500.0,0.00032876,11]
[328312194,1717144253000,-500.0,0.00032876,11]
[328312195,1717144253009,-500.0,0.00032876,11]
[328312196,1717144253018,-500.0,0.00032876,11]
[328312197,1717144253027,-500.0,0.00032876,11]
[328312198,1717144253037,-266.50671008,0.00032876,11]
[328312199,1717144253051,-500.0,0.00032876,11]
[328312200,1717144253060,-500.0,0.00032876,11]
[328312201,1717144253069,-500.0,0.00032876,11]
[328312202,1717144253079,-500.0,0.00032876,11]
[328312203,1717144253089,-500.0,0.00032876,11]
[328312204,1717144253099,-500.0,0.00032876,11]
[328312205,1717144253108,-500.0,0.00032876,11]
[328312206,1717144253119,-500.0,0.00032876,11]
[328312207,1717144253129,-500.0,0.00032876,11]
[328312208,1717144253138,-500.0,0.00032876,11]
[328312209,1717144253148,-500.0,0.00032876,11]
[328312210,1717144253157,-500.0,0.00032876,11]
[328312211,1717144253167,-500.0,0.00032876,11]
[328312212,1717144253176,-500.0,0.00032876,11]
[328312213,1717144253186,-500.0,0.00032876,11]
[328312214,1717144253195,-500.0,0.00032876,11]
[328312215,1717144253203,-500.0,0.00032876,11]
[328312216,1717144253212,-500.0,0.00032876,11]
[328312217,1717144253221,-500.0,0.00032876,11]
[328312218,1717144253231,-453.68082318,0.00032876,11]
[328312219,1717144253239,-500.0,0.00032876,11]
[328312220,1717144253249,-500.0,0.00032876,11]
[328312221,1717144253257,-500.0,0.00032876,11]
[328312222,1717144253266,-500.0,0.00032876,11]
[328312223,1717144253275,-500.0,0.00032876,11]
[328312224,1717144253284,-449.42,0.00032876,11]
[328312225,1717144253293,-500.0,0.00032876,11]
[328312226,1717144253303,-500.0,0.00032876,11]
[328312227,1717144253312,-489.57184205,0.00032876,11]
[328312228,1717144253321,-500.0,0.00032876,11]
[328312229,1717144253330,-500.0,0.00032876,11]
[328312230,1717144253339,-500.0,0.00032876,11]
[328312231,1717144253348,-500.0,0.00032876,11]
[328312232,1717144253358,-500.0,0.00032876,11]
[328312233,1717144253368,-500.0,0.00032876,11]
[328312234,1717144253378,-500.0,0.00032876,11]
[328312235,1717144253387,-500.0,0.00032876,11]
[328312236,1717144253396,-500.0,0.00032876,11]
[328312237,1717144253405,-500.0,0.00032876,11]
[328312238,1717144253414,-77.45779541,0.00032876,11]
[328312239,1717144253437,-422.54220459,0.00032876,11]
[328312240,1717144253446,-500.0,0.00032876,11]
[328312241,1717144253455,-500.0,0.00032876,11]
[328312242,1717144253464,-185.20065478,0.00032876,11]
[328312243,1717144253473,-500.0,0.00032876,11]
[328312244,1717144253482,-500.0,0.00032876,11]
[328312245,1717144253491,-500.0,0.00032876,11]
[328312246,1717144253500,-500.0,0.00032876,11]
[328312247,1717144253509,-500.0,0.00032876,11]
[328312248,1717144253519,-500.0,0.00032876,11]
[328312249,1717144253528,-500.0,0.00032876,11]
[328312250,1717144253537,-500.0,0.00032876,11]
[328312251,1717144253546,-500.0,0.00032876,11]
[328312252,1717144253555,-536.44,0.00032876,11]
[328312253,1717144253564,-500.0,0.00032876,11]
[328312254,1717144253573,-500.0,0.00032876,11]
[328312255,1717144253581,-500.0,0.00032876,11]
[328312256,1717144253590,-500.0,0.00032876,11]
[328312257,1717144253599,-500.0,0.00032876,11]
[328312258,1717144253609,-500.0,0.00032876,11]
[328312259,1717144253618,-500.0,0.00032876,11]
[328312260,1717144253627,-500.0,0.00032876,11]
[328312261,1717144253636,-500.0,0.00032876,11]
[328312262,1717144253645,-500.0,0.00032876,11]
[328312263,1717144253654,-500.0,0.00032876,11]
[328312264,1717144253663,-500.0,0.00032876,11]
[328312265,1717144253672,-500.0,0.00032876,11]
[328312266,1717144253681,-500.0,0.00032876,11]
[328312267,1717144253691,-500.0,0.00032876,11]
[328312268,1717144253700,-318.43608547,0.00032876,11]
[328312269,1717144253713,-220.08546097,0.00032876,11]
[328312270,1717144253722,-183.91453903,0.00032876,11]
[328312271,1717144253734,-316.08546097,0.00032876,11]
[328312272,1717144253742,-207.89485367,0.00032876,11]
[328312273,1717144253758,-292.10514633,0.00032876,11]
[328312274,1717144253767,-500.0,0.00032876,11]
[328312275,1717144253775,-500.0,0.00032876,11]
[328312276,1717144253784,-500.0,0.00032876,11]
[328312277,1717144253794,-500.0,0.00032876,11]
[328312278,1717144253803,-29.28685363,0.00032876,11]
[328312279,1717144253814,-470.71314637,0.00032876,11]
[328312280,1717144253823,-451.40759211,0.00032876,11]
[328312282,1717144355428,-163.65745702,0.00033298,120]
[328312283,1717144355457,-1273.02490191,0.00033298,120]
[328312285,1717144453341,259.1,0.00011,2]
[328312286,1717144518900,24643.747463,0.00011,2]
[328312287,1717144521883,876.46064595,0.00010999,2]
[328312288,1717144532908,17553.69189105,0.00011,2]
[328312289,1717144532935,1000.0,0.00011,2]
[328312290,1717144591847,183.14,0.0002729,120]
[328312291,1717144663293,-600.0,0.000333,120]
[328312292,1717144663326,-183.14,0.00034113,120]
[328312293,1717144787887,185.08,0.00029808,30]
[328312294,1717145154189,-336.59570554,0.00012733,2]
[328312295,1717145154209,-685.842551,0.00012768,2]
[328312296,1717145154228,-429.06448337,0.00012833,2]
[328312297,1717145154247,-302.80235908,0.00012999,2]
[328312298,1717145232509,4300.0,0.000139,5]
[328312299,1717145237169,-956.87127297,0.00012349,2]
[328312300,1717145237192,-6824.45154523,0.00012999,2]
[328312301,1717145237215,-550.46888456,0.00012999,2]
[328312302,1717145237238,-3526.85094015,0.00012999,2]
[328312303,1717145256340,185.08,0.00029808,30]
[328312308,1717145324360,2291.82,0.0001526,6]
[328312311,1717145347175,-436.9148502,0.00012348,2]
[328312312,1717145350118,-503.75253649,0.00012348,2]
[328312313,1717145350145,-637.05886351,0.00012349,2]
[328312323,1717145432234,-4853.51854859,0.00012349,2]
[328312332,1717145438204,-999.29999798,0.00012349,2]
[328312333,1717145438392,-3149.00662573,0.00012349,2]
[328312334,1717145438405,-1298.10070513,0.00012349,2]
[328312335,1717145438422,-1405.38287928,0.00012349,2]
[328312336,1717145438529,-999.858006,0.00012349,2]
[328312348,1717145441405,-7048.30195043,0.00012349,2]
[328312349,1717145441416,-308.77162708,0.00012349,2]
[328312350,1717145441427,-150.0,0.00012998,2]
[328312351,1717145441439,-77.20562819,0.00012999,2]
[328312352,1717145441519,-441.72500004,0.00012999,2]
[328312353,1717145441533,-35.76690612,0.00012999,2]
[328312354,1717145441545,-1039.41309388,0.00013,2]
[328312355,1717145441559,-6811.6962,0.00013,2]
[328312356,1717145441571,-10391.00005223,0.00013,2]
[328312365,1717145445665,-1030.56946081,0.00013,2]
[328312369,1717145446838,-779.60731013,0.00013,2]
[328312370,1717145446849,-1561.18374677,0.00013,2]
[328312371,1717145446860,-2071.65260249,0.00013,2]
[328312372,1717145630253,440.49,0.00033151,120]
[328312373,1717145755307,185.08,0.00029808,30]
[328312374,1717145790444,591.81,0.00035,90]
[328312384,1717146067203,-785.08586126,0.00012307,2]
[328312385,1717146067223,-5284.55875445,0.00012307,2]
[328312387,1717146073762,791.11871029,0.00012307,2]
[328312388,1717146079946,687.51527312,0.00012307,2]
[328312389,1717146094197,-657.82936263,0.0001231,2]
[328312390,1717146094219,-155.0,0.0001231,2]
[328312391,1717146133801,-259.36043493,0.00012311,2]
[328312392,1717146136742,19753.46871314,0.0001231,2]
[328312393,1717146138079,155.0,0.0001231,2]
[328312394,1717146138400,362.54770012,0.0001231,2]
[328312395,1717146138442,891.04072926,0.00011695,2]
[328312396,1717146139098,805.75685962,9.233e-05,2]
[328312397,1717146143074,155.0,0.0001231,2]
[328312398,1717146145259,946.68500125,0.0001231,2]
[328312399,1717146147444,248.94050071,0.0001231,2]
[328312400,1717146150061,347.07265404,0.0001231,2]
[328312401,1717146150733,17564.25029744,0.0001231,2]
[328312402,1717146154017,210.5587232,0.0001231,2]
[328312403,1717146160829,155.0,0.0001231,2]
[328312404,1717146162300,362.54770012,0.0001231,2]
[328312405,1717146167261,946.68500125,0.0001231,2]
[328312406,1717146167980,347.07265404,0.0001231,2]
[328312407,1717146173034,2589.48173221,9.233e-05,2]
[328312408,1717146173128,956.87127297,0.00011695,2]
[328312409,1717146177391,1361.82135977,0.0001231,2]
[328312410,1717146178836,304.74624046,0.0001231,2]
[328312411,1717146180310,272.42621242,0.0001231,2]
[328312412,1717146183992,296.70992755,0.0001231,2]
[328312413,1717146191293,956.87127297,0.00011695,2]
[328312414,1717146193252,946.68500125,0.0001231,2]
[328312415,1717146197386,1361.82135977,0.0001231,2]
[328312416,1717146207297,957.98427332,0.00011695,2]
[328312417,1717146213255,946.68500125,0.0001231,2]
[328312418,1717146217630,1361.82135977,0.0001231,2]
[328312419,1717146229270,946.68500125,0.0001231,2]
[328312420,1717146235400,1361.82135977,0.0001231,2]
[328312421,1717146251269,946.68500125,0.0001231,2]
[328312422,1717146255404,1361.82135977,0.0001231,2]
[328312423,1717146275401,1361.82135977,0.0001231,2]
[328312424,1717146277255,709.18670009,0.0001231,2]
[328312425,1717146291403,1362.8142123,0.0001231,2]
[328312426,1717146338168,-150.0,0.00012348,2]
[328312427,1717146338189,-150.0,0.00012348,2]
[328312428,1717146338211,-1130.06705116,0.00012349,2]
[328312429,1717146382473,-150.0,0.00012348,2]
[328312430,1717146400100,844.21122165,0.00035,91]
[328312431,1717146412297,-16198.19592012,0.00012349,2]
[328312432,1717146423697,4100.0,0.000139,5]
[328312433,1717146430423,2942.40844373,0.00012348,2]
[328312434,1717146445106,-376.93497872,0.00012613,2]
[328312436,1717146545561,172.61,0.00010959,2]
[328312437,1717146556082,863.09,0.00010959,2]
[328312449,1717146631550,-2171.90573148,0.00012613,2]
[328312450,1717146631561,-682.78324848,0.00012613,2]
[328312465,1717146637521,-10274.0346688,0.00012613,2]
[328312466,1717146637533,-519.08041249,0.00012613,2]
[328312467,1717146637544,-3473.36783304,0.00012613,2]
[328312468,1717146637564,-672.2887965,0.00012613,2]
[328312469,1717146637575,-303.29325585,0.00012613,2]
[328312470,1717146637713,-0.32350344,0.00012613,2]
[328312471,1717146637724,-837.696,0.00012613,2]
[328312472,1717146637735,-6820.3,0.00012613,2]
[328312492,1717146640259,-5301.01197096,0.00012613,2]
[328312493,1717146640463,-143919.36956191,0.00012613,2]
[328312494,1717146641053,-1573.69920216,0.00012613,2]
[328312495,1717146641065,-1047.43920001,0.00012613,2]
[328312496,1717146641111,-3486.79339476,0.00012613,2]
[328312497,1717146641122,-10400.6759863,0.00012613,2]
[328312498,1717146641163,-961.51875694,0.00012613,2]
[328312499,1717146641175,-2987.54277225,0.00012613,2]
[328312509,1717146642618,-500.0,0.00012613,2]
[328312510,1717146642630,-29483.61195601,0.00012613,2]
[328312511,1717146642641,-329.31676455,0.00012613,2]
[328312512,1717146642769,-4218.7378414,0.00012613,2]
[328312513,1717146642911,-1422.82261356,0.00012613,2]
[328312514,1717146642923,-519.476,0.00012613,2]
[328312515,1717146642965,-2901.97428567,0.00012613,2]
[328312516,1717146642976,-3441.35125621,0.00012613,2]
[328312517,1717146642987,-1485.64601786,0.00012613,2]
[328312533,1717146646382,-4624.78799352,0.00012613,2]
[328312534,1717146646394,-2356.308,0.00012613,2]
[328312539,1717146646623,-1.8e-07,0.00012613,2]
[328312540,1717146646645,-0.00070942,0.00012613,2]
[328312541,1717146646656,-61675.83001669,0.00012613,2]
[328312542,1717146646691,-535.71711446,0.00012613,2]
[328312543,1717146646703,-610.35191763,0.00012613,2]
[328312544,1717146646714,-397.0,0.00012613,2]
[328312545,1717146646729,-518.90570714,0.00012613,2]
[328312548,1717146666845,16911.66152272,0.00010959,2]
[328312552,1717146699387,39352.7034989,0.0003,30]
[328312556,1717146745897,-82525.17917465,0.00012613,2]
[328312557,1717146926559,157.56,0.00029808,30]
[328312558,1717147093194,169.1,0.000248,120]
[328312562,1717147553129,-259.36043493,0.00012418,2]
[328312563,1717147553149,-791.11871029,0.00012418,2]
[328312564,1717147553170,-199.08712146,0.00012419,2]
[328312565,1717147676323,12112.0,0.00035,90]
[328312566,1717147743650,500.0,0.00035,90]
[328312567,1717147807686,1687.57,0.00035,90]
[328312571,1717147831854,-153.86904226,0.000129,2]
[328312572,1717147831865,-219.04590872,0.00012952,2]
[328312573,1717147831875,-4866.88191727,0.00012977,2]
[328312574,1717147831889,-4479.65437625,0.00012977,2]
[328312575,1717147831899,-29614.79515149,0.00013,2]
[328312604,1717147837636,-1363.02166,0.00013,2]
[328312605,1717147837702,-1309.44028988,0.00013,2]
[328312606,1717147837714,-1271.36256223,0.00013,2]
[328312607,1717147837725,-1140.8114,0.000139,2]
[328312608,1717147837741,-14816.0206,0.000139,2]
[328312609,1717147837750,-1421.4864,0.000139,2]
[328312610,1717147837759,-461.5845,0.000139,2]
[328312611,1717147837769,-306.83536219,0.00013999,2]
[328312612,1717147837779,-155.50105923,0.00013999,2]
[328312613,1717147837788,-86.79894649,0.00013999,2]
[328312614,1717147837876,-70.58998617,0.00013999,2]
[328312615,1717147837886,-3723.39627734,0.00014,2]
[328312616,1717147837935,-3887.96353,0.00014,2]
[328312617,1717147837946,-3123.53,0.00014,2]
[328312618,1717147837958,-876.07070644,0.00014,2]
[328312619,1717147837969,-177348.05166654,0.00014,2]
[328312620,1717147837992,-5323.6101356,0.00014,2]
[328312621,1717147838004,-1309.29605926,0.00014,2]
[328312622,1717147838015,-385.64014377,0.00014,2]
[328312693,1717147840489,-99759.21149012,0.00014,2]
[328312695,1717147840501,-2384.56773901,0.00014,2]
[328312755,1717147841234,-680.08,0.00014,2]
[328312756,1717147841246,-3933.9,0.00014,2]
[328312841,1717147842750,-22254.01811911,0.00014,2]
[328312849,1717147842821,-485.85127002,0.00014,2]
[328312851,1717147842832,-850.46092243,0.00014,2]
[328312853,1717147842844,-1177.59440765,0.00014,2]
[328312872,1717147843033,-17649.30776945,0.00014,2]
[328312873,1717147843044,-993.12736041,0.00014,2]
[328312910,1717147847768,-780.51391756,0.00014,2]
[328312911,1717147847781,-542.59756573,0.00014,2]
[328312912,1717147847792,-1700.9,0.00014,2]
[328312913,1717147847829,-545.403,0.00014,2]
[328312914,1717147847893,-1065.18041574,0.00014,2]
[328312915,1717147847958,-5280.803355,0.00014,2]
[328312917,1717148113135,1228.64,0.00030137,30]
[328312920,1717148320347,3695.72344192,0.00035,90]
[328312921,1717148752131,-429.06448337,0.00010898,2]
[328312922,1717148752151,-155.0,0.00010898,2]
[328312923,1717148752170,-168.29785277,0.00010899,2]
[328312924,1717148752191,-168.29785277,0.000109,2]
[328312925,1717148752211,-783.17738963,0.00011,2]
[328312928,1717148797890,171.03560841,5e-05,2]
[328312929,1717148859490,828.96439159,3.75e-05,2]
[328312930,1717148859514,1721.37620696,3.75e-05,2]
[328312931,1717148877590,909.62379304,3.75e-05,2]
[328312932,1717148877618,1640.71680551,3.75e-05,2]
[328312935,1717148897691,2550.34059855,3.75e-05,2]
[328312936,1717148900986,24643.747463,5e-05,2]
[328312937,1717148912944,24643.747463,5e-05,2]
[328312938,1717148915480,2550.34059855,3.75e-05,2]
[328312939,1717148933196,12915.01317562,5e-05,2]
[328312940,1717148935498,2550.75375982,3.75e-05,2]
[328312941,1717148947168,-3003.58267377,0.00011,2]
[328312942,1717148948434,367.07,0.00033151,120]
[328312943,1717148951482,604.08558957,3.75e-05,2]
[328312944,1717148954189,-847.33681949,0.00011,2]
[328312945,1717148954210,-429.06448337,0.00011799,2]
[328312946,1717148954232,-1163.5424166,0.000118,2]
[328312947,1717148965108,-264.68620868,0.000118,2]
[328312948,1717148965132,-614.9269481,0.00012367,2]
[328312978,1717149035137,-70.9156029,0.00012367,2]
[328312979,1717149035148,-167.2,0.00012493,2]
[328312980,1717149035158,-340.16655421,0.00012998,2]
[328312981,1717149035168,-541.55577053,0.00012998,2]
[328312982,1717149035180,-182.009454,0.00012998,2]
[328312983,1717149035190,-150.0,0.00012999,2]
[328312984,1717149035199,-45109.03746912,0.00013,2]
[328312985,1717149035211,-1321.2763,0.000137,2]
[328312986,1717149035222,-412.17126416,0.00013784,2]
[328312987,1717149035233,-49330.1015,0.000138,2]
[328312988,1717149035242,-2500.0,0.000138,2]
[328312989,1717149035252,-534.82,0.000138,2]
[328312990,1717149035262,-499.99,0.000138,2]
[328312991,1717149035273,-189.43873095,0.00013859,2]
[328312992,1717149035282,-288.02,0.00013859,2]
[328312993,1717149035293,-411.11,0.00013889,2]
[328312994,1717149035302,-1061.45496684,0.00013889,2]
[328312995,1717149035311,-2833.03,0.00013889,2]
[328312996,1717149035320,-26825.4847,0.000139,2]
[328312997,1717149035330,-70980.31748158,0.000139,2]
[328312998,1717149035362,-12374.15526105,0.000139,2]
[328313020,1717149038034,-2038.3542,0.000139,2]
[328313021,1717149038046,-857.83662277,0.000139,2]
[328313022,1717149038058,-2780.3345346,0.000139,2]
[328313023,1717149038068,-10809.16546541,0.000139,2]
[328313024,1717149038120,-16788.22358856,0.000139,2]
[328313025,1717149038138,-6670.00918374,0.000139,2]
[328313026,1717149038219,-367.18970664,0.000139,2]
[328313027,1717149038231,-4604.43615565,0.000139,2]
[328313028,1717149038240,-319.57287822,0.000139,2]
[328313029,1717149038249,-700.65,0.00013947,2]
[328313030,1717149038260,-151.0,0.00013989,2]
[328313031,1717149038269,-5.64472985,0.00013989,2]
[328313032,1717149038306,-290.06361815,0.00013989,2]
[328313034,1717149038315,-5.02620634,0.00013989,2]
[328313137,1717149044746,-8000.73728599,0.00013989,2]
[328313138,1717149044760,-1865.78578036,0.00013989,2]
[328313139,1717149044772,-665.28910994,0.00013989,2]
[328313140,1717149044784,-544.01724768,0.00013989,2]
[328313141,1717149044798,-750.72000001,0.00013989,2]
[328313142,1717149044840,-976.40646171,0.00013989,2]
[328313156,1717149046253,-6608.61551058,0.00013989,2]
[328313160,1717149046446,-10024.89021605,0.00013989,2]
[328313161,1717149046457,-4852.39553538,0.00013989,2]
[328313162,1717149046525,-257.85626686,0.00013989,2]
[328313164,1717149181384,12339.26,0.00035,90]
[328313165,1717149591069,576.79273475,0.00013988,7]
[328313167,1717149944002,305.89,0.00034655,120]
[328313168,1717149949120,-150.0,0.00013899,2]
[328313169,1717149949139,-150.0,0.00013899,2]
[328313170,1717149949341,-264.347,0.000139,2]
[328313171,1717149949362,-893.10553577,0.000139,2]